fUSD/lending_fUSD_20250507
["ID","MTS","AMOUNT","RATE_DAILY","PERIOD"]
[360231472,1746640252014,-151.0,0.00019995,2]
[360231473,1746640252025,-601.69,0.00019995,2]
[360231474,1746640252035,-151.0,0.00019995,2]
[360231475,1746640252048,-151.0,0.00019995,2]
[360231476,1746640252059,-265.290808,0.00019995,2]
[360231477,1746640252070,-265.290808,0.00019995,2]
[360231478,1746640252080,-151.0,0.00019995,2]
[360231479,1746640252091,-3052.68,0.00019995,2]
[360231480,1746640252101,-476.9,0.00019995,2]
[360231481,1746640252112,-151.0,0.00019995,2]
[360231482,1746640252123,-151.0,0.00019995,2]
[360231483,1746640252135,-450.0,0.00019995,2]
[360231484,1746640252146,-151.0,0.00019995,2]
[360231485,1746640252157,-500.0,0.00019995,2]
[360231486,1746640252168,-450.0,0.00019995,2]
[360231487,1746640252179,-364.04,0.00019995,2]
[360231488,1746640252190,-450.0,0.00019995,2]
[360231489,1746640252205,-194.35,0.00019995,2]
[360231490,1746640252215,-450.0,0.00019995,2]
[360231491,1746640252225,-1160.6,0.00019995,2]
[360231492,1746640252235,-450.0,0.00019995,2]
[360231493,1746640252247,-450.0,0.00019995,2]
[360231494,1746640252258,-450.0,0.00019995,2]
[360231495,1746640252269,-151.0,0.00019995,2]
[360231496,1746640252280,-450.0,0.00019995,2]
[360231497,1746640252291,-1449.14,0.00019995,2]
[360231498,1746640252302,-1425.83,0.00019995,2]
[360231499,1746640252312,-450.0,0.00019995,2]
[360231500,1746640252322,-450.0,0.00019995,2]
[360231501,1746640252333,-12569.66,0.00019995,2]
[360231502,1746640252344,-666.0,0.00019995,2]
[360231503,1746640252359,-324.57324155,0.00019995,2]
[360231504,1746640252370,-151.0,0.00019996,2]
[360231505,1746640252381,-151.0,0.00019996,2]
[360231506,1746640252393,-96964.09177284,0.00019996,2]
[360231507,1746640252413,-373.33897885,0.00019996,2]
[360231508,1746640252628,-620.0,0.00019996,2]
[360231509,1746640252726,-253.30440159,0.00019881,2]
[360231510,1746640252737,-520.57519414,0.000199,2]
[360231511,1746640252746,-500.0,0.00019967,2]
[360231512,1746640252757,-500.0,0.00019967,2]
[360231513,1746640252767,-4753.72040427,0.00019996,2]
[360231514,1746640252779,-516.675,0.00019996,2]
[360231515,1746640543252,230.0,0.00018928,2]
[360231516,1746640543281,963.96,0.00018928,2]
[360231517,1746640570840,157.82,0.00018923,2]
[360231520,1746640653663,1000.0,0.00018938,2]
[360231521,1746640858966,1118.0,0.000194,2]
[360231522,1746640860450,150.0,0.00018986,7]
[360231523,1746640929225,250.0,0.00018905,2]
[360231524,1746640932917,170.58,0.00018905,2]
[360231525,1746640933913,170.58,0.00025994,120]
[360231526,1746640934140,170.58,0.00028357,120]
[360231527,1746640940834,-152.0,0.00019502,2]
[360231528,1746640954551,-192.11888246,0.00019502,2]
[360231529,1746640969046,-327.44136691,0.00019502,2]
[360231530,1746640974332,298.79,0.00018896,2]
[360231531,1746640984195,-180.01,0.00019502,2]
[360231532,1746641001520,-234.31372082,0.00019502,2]
[360231533,1746641016453,151.53,0.00019502,2]
[360231534,1746641030139,-168.74,0.00019502,2]
[360231537,1746641044040,-230.0,0.00019502,2]
[360231538,1746641046572,749.11,0.00016979,2]
[360231539,1746641046811,749.11,0.00019243,2]
[360231541,1746641093369,877.102553,0.00019453,2]
[360231543,1746641221043,150.0,0.00018901,2]
[360231544,1746641277185,3042.81,0.00018899,2]
[360231545,1746641318919,250.0,0.00017,2]
[360231546,1746641320011,300.0,0.00019,2]
[360231547,1746641330841,920.57126463,0.0003,30]
[360231558,1746641431974,-200.0,0.00019575,2]
[360231559,1746641431985,-251.875,0.000196,2]
[360231560,1746641431997,-866.125,0.000196,2]
[360231561,1746641432007,-200.0,0.00019659,2]
[360231562,1746641432017,-150.0,0.00019726,2]
[360231563,1746641432026,-150.0,0.00019745,2]
[360231564,1746641432037,-150.0,0.00019783,2]
[360231565,1746641432047,-207.4,0.00019788,2]
[360231566,1746641432057,-217.1177524,0.00019798,2]
[360231567,1746641432070,-666.195,0.00019799,2]
[360231568,1746641432081,-1200.0,0.00019799,2]
[360231569,1746641432091,-300.0,0.00019799,2]
[360231570,1746641432103,-5146.90008999,0.000198,2]
[360231571,1746641432121,-2631.11003101,0.000198,2]
[360231572,1746641432131,-1118.0,0.000198,2]
[360231573,1746641432142,-150.0,0.00019801,2]
[360231574,1746641432152,-150.0,0.00019801,2]
[360231575,1746641432162,-187.323864,0.00019816,2]
[360231576,1746641432172,-150.0,0.00019822,2]
[360231577,1746641432181,-150.0,0.00019824,2]
[360231578,1746641432191,-150.0,0.0001985,2]
[360231579,1746641432200,-5184.4212,0.00019867,2]
[360231580,1746641432210,-1838.48240855,0.0001987,2]
[360231581,1746641432220,-583.51681948,0.00019871,2]
[360231582,1746641432231,-151.0,0.00019873,2]
[360231583,1746641432241,-1838.48240852,0.00019873,2]
[360231585,1746641432251,-1838.48240852,0.00019877,2]
[360231587,1746641432262,-1838.48240852,0.0001988,2]
[360231589,1746641432272,-1838.48240852,0.00019883,2]
[360231591,1746641432282,-240.65886434,0.00019884,2]
[360231593,1746641432293,-1838.48240852,0.00019887,2]
[360231595,1746641432303,-1838.48240852,0.0001989,2]
[360231597,1746641432311,-177.0,0.0001989,2]
[360231599,1746641432321,-1838.48240852,0.00019893,2]
[360231600,1746641432331,-593.2508052,0.00019896,2]
[360231601,1746641432341,-243.98351083,0.00019896,2]
[360231603,1746641432351,-1838.48240852,0.00019897,2]
[360231605,1746641432361,-500.0,0.00019897,2]
[360231607,1746641432371,-201.73429737,0.00019897,2]
[360231609,1746641432380,-500.0,0.00019897,2]
[360231611,1746641432390,-500.0,0.00019897,2]
[360231613,1746641432401,-500.0,0.00019897,2]
[360231615,1746641432410,-500.0,0.00019897,2]
[360231617,1746641432419,-61.48193105,0.00019897,2]
[360231619,1746641432431,-307.99481665,0.00019897,2]
[360231621,1746641432441,-500.0,0.00019897,2]
[360231623,1746641432451,-500.0,0.00019897,2]
[360231625,1746641432460,-500.0,0.00019897,2]
[360231627,1746641432470,-500.0,0.00019897,2]
[360231628,1746641432479,-1000.0,0.00019898,2]
[360231631,1746641432490,-153.4029418,0.00019899,2]
[360231633,1746641432499,-396.43515768,0.00019899,2]
[360231634,1746641432508,-150.0,0.00019899,2]
[360231636,1746641432518,-1169.31007772,0.000199,2]
[360231637,1746641432527,-163.02228812,0.000199,2]
[360231638,1746641432539,-1838.48240852,0.000199,2]
[360231639,1746641432549,-3261.04523009,0.000199,2]
[360231640,1746641432558,-1221.27773642,0.000199,2]
[360231641,1746641432568,-340.37,0.00019906,7]
[360231642,1746641432578,-500.0,0.00019918,2]
[360231643,1746641432587,-2999.938,0.00019943,2]
[360231644,1746641432597,-2511.23597498,0.00019956,2]
[360231645,1746641432606,-150.0,0.0001996,2]
[360231646,1746641432616,-162.39,0.0001996,2]
[360231647,1746641432627,-887.08,0.0001996,2]
[360231648,1746641432636,-25723.12768768,0.00019965,2]
[360231649,1746641432646,-490.0,0.00019966,2]
[360231650,1746641432657,-450.0,0.00019966,2]
[360231651,1746641432667,-450.0,0.00019966,2]
[360231652,1746641432678,-450.0,0.00019966,2]
[360231653,1746641432688,-450.0,0.00019966,2]
[360231654,1746641432698,-450.0,0.00019966,2]
[360231655,1746641432707,-450.0,0.00019966,2]
[360231656,1746641432718,-450.0,0.00019966,2]
[360231657,1746641432728,-450.0,0.00019966,2]
[360231658,1746641432738,-450.0,0.00019966,2]
[360231659,1746641432747,-450.0,0.00019966,2]
[360231660,1746641432757,-450.0,0.00019966,2]
[360231661,1746641432766,-450.0,0.00019966,2]
[360231662,1746641432777,-450.0,0.00019966,2]
[360231663,1746641432787,-450.0,0.00019966,2]
[360231664,1746641432796,-1907.92,0.00019966,2]
[360231665,1746641432805,-375.06112964,0.00019967,2]
[360231666,1746641432815,-470.0,0.00019967,2]
[360231667,1746641432825,-470.0,0.00019967,2]
[360231668,1746641432834,-450.0,0.00019967,2]
[360231669,1746641432844,-470.0,0.00019967,2]
[360231670,1746641432853,-466.62312589,0.00019967,2]
[360231671,1746641432863,-576.49,0.00019967,2]
[360231672,1746641432873,-470.0,0.00019967,2]
[360231673,1746641432883,-470.0,0.00019967,2]
[360231674,1746641432892,-305.46,0.00019967,2]
[360231675,1746641432902,-337.87878085,0.00019967,2]
[360231676,1746641432912,-275.84541727,0.00019967,2]
[360231677,1746641432922,-1695.009,0.00019968,2]
[360231678,1746641432933,-150.0,0.00019969,2]
[360231679,1746641432942,-450.0,0.00019969,2]
[360231680,1746641432952,-450.0,0.00019969,2]
[360231681,1746641432961,-264.84240514,0.00019969,2]
[360231682,1746641432971,-166.47,0.00019969,2]
[360231683,1746641432981,-450.0,0.00019969,2]
[360231684,1746641432991,-450.0,0.00019969,2]
[360231685,1746641433000,-907.95,0.00019969,2]
[360231686,1746641433010,-450.0,0.00019969,2]
[360231687,1746641433020,-450.0,0.00019969,2]
[360231688,1746641433030,-450.0,0.00019969,2]
[360231689,1746641433042,-1086.86,0.00019969,2]
[360231690,1746641433051,-450.0,0.00019969,2]
[360231691,1746641433063,-450.0,0.00019969,2]
[360231692,1746641433072,-450.0,0.00019969,2]
[360231693,1746641433082,-450.0,0.00019969,2]
[360231694,1746641433092,-450.0,0.00019969,2]
[360231695,1746641433103,-314.4709455,0.00019969,2]
[360231696,1746641433113,-450.0,0.00019969,2]
[360231697,1746641433123,-450.0,0.00019969,2]
[360231698,1746641433133,-500.0,0.00019969,2]
[360231699,1746641433143,-500.0,0.00019969,2]
[360231700,1746641433153,-500.0,0.00019969,2]
[360231701,1746641433163,-450.0,0.0001997,2]
[360231702,1746641433172,-500.0,0.0001997,2]
[360231703,1746641433185,-450.0,0.0001997,2]
[360231704,1746641433195,-500.0,0.0001997,2]
[360231705,1746641433205,-500.0,0.0001997,2]
[360231706,1746641433214,-450.0,0.0001997,2]
[360231707,1746641433224,-408.92802733,0.0001997,2]
[360231708,1746641433233,-458.73592444,0.0001997,2]
[360231709,1746641433243,-450.0,0.0001997,2]
[360231710,1746641433253,-450.0,0.0001997,2]
[360231711,1746641433263,-450.0,0.0001997,2]
[360231712,1746641433274,-450.0,0.0001997,2]
[360231713,1746641433284,-450.0,0.0001997,2]
[360231714,1746641433294,-468.70026727,0.0001997,2]
[360231715,1746641433304,-450.0,0.0001997,2]
[360231716,1746641433315,-450.0,0.0001997,2]
[360231717,1746641433324,-450.0,0.0001997,2]
[360231718,1746641433334,-450.0,0.0001997,2]
[360231719,1746641433344,-500.0,0.0001997,2]
[360231720,1746641433354,-500.0,0.0001997,2]
[360231721,1746641433363,-500.0,0.0001997,2]
[360231722,1746641433373,-500.0,0.0001997,2]
[360231723,1746641433383,-450.0,0.0001997,2]
[360231724,1746641433393,-500.0,0.0001997,2]
[360231725,1746641433404,-500.0,0.0001997,2]
[360231726,1746641433415,-500.0,0.0001997,2]
[360231727,1746641433426,-450.0,0.0001997,2]
[360231728,1746641433436,-500.0,0.0001997,2]
[360231729,1746641433447,-582.13457163,0.0001997,2]
[360231730,1746641433457,-500.0,0.0001997,2]
[360231731,1746641433468,-500.0,0.0001997,2]
[360231732,1746641433480,-500.0,0.0001997,2]
[360231733,1746641433492,-500.0,0.0001997,2]
[360231734,1746641433503,-500.0,0.0001997,2]
[360231735,1746641433514,-500.0,0.0001997,2]
[360231736,1746641433524,-500.0,0.0001997,2]
[360231737,1746641433536,-500.0,0.0001997,2]
[360231738,1746641433550,-500.0,0.0001997,2]
[360231739,1746641433560,-519.02698692,0.0001997,2]
[360231740,1746641433572,-500.0,0.0001997,2]
[360231741,1746641433584,-450.0,0.0001997,2]
[360231742,1746641433595,-450.0,0.0001997,2]
[360231743,1746641433605,-500.0,0.0001997,2]
[360231744,1746641433614,-500.0,0.0001997,2]
[360231745,1746641433626,-595.43686775,0.0001997,2]
[360231746,1746641433636,-544.12310273,0.0001997,2]
[360231747,1746641433647,-500.0,0.0001997,2]
[360231748,1746641433658,-500.0,0.0001997,2]
[360231749,1746641433669,-342.33459724,0.0001997,2]
[360231750,1746641433684,-107.66540276,0.0001997,2]
[360231751,1746641433695,-500.0,0.0001997,2]
[360231752,1746641433706,-571.19,0.0001997,2]
[360231753,1746641433717,-500.0,0.0001997,2]
[360231754,1746641433727,-500.0,0.0001997,2]
[360231755,1746641433742,-500.0,0.0001997,2]
[360231756,1746641433753,-500.0,0.0001997,2]
[360231757,1746641433763,-500.0,0.0001997,2]
[360231758,1746641433774,-500.0,0.0001997,2]
[360231759,1746641433787,-450.0,0.0001997,2]
[360231760,1746641433798,-450.0,0.0001997,2]
[360231761,1746641433808,-511.22083539,0.0001997,2]
[360231762,1746641433818,-96.63496185,0.0001997,2]
[360231763,1746641433831,-403.36503815,0.0001997,2]
[360231764,1746641433841,-503.48609726,0.0001997,2]
[360231765,1746641433852,-50.62001027,0.0001997,2]
[360231766,1746641433866,-449.37998973,0.0001997,2]
[360231767,1746641433876,-23.14693282,0.0001997,2]
[360231768,1746641433889,-426.85306718,0.0001997,2]
[360231769,1746641433901,-450.0,0.0001997,2]
[360231770,1746641433912,-500.0,0.0001997,2]
[360231771,1746641433922,-500.0,0.0001997,2]
[360231772,1746641433934,-450.0,0.0001997,2]
[360231773,1746641433944,-500.0,0.0001997,2]
[360231774,1746641433955,-500.0,0.0001997,2]
[360231775,1746641433966,-480.2264725,0.0001997,2]
[360231776,1746641433977,-570.5200492,0.0001997,2]
[360231777,1746641433986,-450.0,0.0001997,2]
[360231778,1746641433996,-564.45460308,0.0001997,2]
[360231779,1746641434006,-500.0,0.0001997,2]
[360231780,1746641434015,-500.0,0.0001997,2]
[360231781,1746641434024,-301.54150443,0.0001997,2]
[360231782,1746641434033,-500.0,0.0001997,2]
[360231783,1746641434045,-450.0,0.0001997,2]
[360231784,1746641434055,-450.0,0.0001997,2]
[360231785,1746641434069,-450.0,0.0001997,2]
[360231786,1746641434080,-450.0,0.0001997,2]
[360231787,1746641434091,-500.0,0.0001997,2]
[360231788,1746641434103,-450.0,0.0001997,2]
[360231789,1746641434113,-500.0,0.0001997,2]
[360231790,1746641434124,-500.0,0.0001997,2]
[360231791,1746641434135,-450.0,0.0001997,2]
[360231792,1746641434146,-500.0,0.0001997,2]
[360231793,1746641434157,-500.0,0.0001997,2]
[360231794,1746641434167,-500.0,0.0001997,2]
[360231795,1746641434178,-500.0,0.0001997,2]
[360231796,1746641434195,-450.0,0.0001997,2]
[360231797,1746641434206,-450.0,0.0001997,2]
[360231798,1746641434216,-500.0,0.0001997,2]
[360231799,1746641434228,-450.0,0.0001997,2]
[360231800,1746641434238,-500.0,0.0001997,2]
[360231801,1746641434248,-566.22,0.0001997,2]
[360231802,1746641434258,-500.0,0.0001997,2]
[360231803,1746641434269,-450.0,0.0001997,2]
[360231804,1746641434280,-450.0,0.0001997,2]
[360231805,1746641434291,-517.30131206,0.0001997,2]
[360231806,1746641434301,-450.0,0.0001997,2]
[360231807,1746641434311,-561.21907155,0.0001997,2]
[360231808,1746641434561,-356.39,0.0001997,2]
[360231809,1746641434578,-333.12092845,0.0001997,2]
[360231810,1746641434588,-500.0,0.0001997,2]
[360231811,1746641434598,-210.69087504,0.0001997,2]
[360231815,1746641438000,-962.77,0.00019894,2]
[360231816,1746641438103,-1556.85043324,0.00019894,2]
[360231817,1746641438114,-340.47912496,0.0001997,2]
[360231818,1746641438123,-450.0,0.0001997,2]
[360231819,1746641438134,-500.0,0.0001997,2]
[360231820,1746641438144,-500.0,0.0001997,2]
[360231821,1746641438153,-500.0,0.0001997,2]
[360231822,1746641438163,-500.0,0.0001997,2]
[360231823,1746641438172,-129.1478828,0.0001997,2]
[360231824,1746641438184,-370.8521172,0.0001997,2]
[360231825,1746641438194,-256.52908062,0.0001997,2]
[360231826,1746641438207,-283.64896057,0.0001997,2]
[360231827,1746641438216,-168.41785469,0.0001997,2]
[360231828,1746641438226,-450.0,0.0001997,2]
[360231829,1746641438236,-240.05808033,0.0001997,2]
[360231830,1746641438252,-209.94191967,0.0001997,2]
[360231831,1746641438262,-450.0,0.0001997,2]
[360231832,1746641438272,-449.73983441,0.0001997,2]
[360231833,1746641438282,-500.0,0.0001997,2]
[360231834,1746641438296,-660.68,0.0001997,2]
[360231835,1746641438308,-450.0,0.0001997,2]
[360231836,1746641438319,-450.0,0.0001997,2]
[360231837,1746641438329,-500.0,0.0001997,2]
[360231838,1746641438339,-500.0,0.0001997,2]
[360231839,1746641438349,-500.0,0.0001997,2]
[360231840,1746641438359,-450.0,0.0001997,2]
[360231841,1746641438369,-500.0,0.0001997,2]
[360231842,1746641438380,-500.0,0.0001997,2]
[360231843,1746641438390,-500.0,0.0001997,2]
[360231844,1746641438400,-500.0,0.0001997,2]
[360231845,1746641438410,-512.0309497,0.0001997,2]
[360231846,1746641438420,-500.0,0.0001997,2]
[360231847,1746641438430,-450.0,0.0001997,2]
[360231848,1746641438440,-367.75,0.0001997,2]
[360231849,1746641438450,-500.0,0.0001997,2]
[360231850,1746641438460,-500.0,0.0001997,2]
[360231851,1746641438470,-2954.4,0.0001997,2]
[360231852,1746641438480,-500.0,0.0001997,2]
[360231853,1746641438489,-450.0,0.0001997,2]
[360231854,1746641438500,-549.71980539,0.0001997,2]
[360231855,1746641438510,-362.75,0.0001997,2]
[360231856,1746641438520,-500.0,0.0001997,2]
[360231857,1746641438530,-450.0,0.0001997,2]
[360231859,1746641438543,-450.0,0.0001997,2]
[360231861,1746641438553,-450.0,0.0001997,2]
[360231863,1746641438563,-450.0,0.0001997,2]
[360231865,1746641438574,-450.0,0.0001997,2]
[360231867,1746641438585,-500.0,0.0001997,2]
[360231869,1746641438596,-470.0,0.0001997,2]
[360231871,1746641438608,-450.0,0.0001997,2]
[360231873,1746641438619,-450.0,0.0001997,2]
[360231875,1746641438629,-500.0,0.0001997,2]
[360231877,1746641438639,-518.43346443,0.0001997,2]
[360231879,1746641438649,-450.0,0.0001997,2]
[360231881,1746641438659,-500.0,0.0001997,2]
[360231883,1746641438670,-500.0,0.0001997,2]
[360231885,1746641438680,-450.0,0.0001997,2]
[360231887,1746641438690,-595.24973998,0.0001997,2]
[360231889,1746641438701,-596.58854627,0.0001997,2]
[360231891,1746641438711,-450.0,0.0001997,2]
[360231893,1746641438721,-450.0,0.0001997,2]
[360231895,1746641438731,-450.0,0.0001997,2]
[360231897,1746641438742,-450.0,0.0001997,2]
[360231899,1746641438752,-450.0,0.0001997,2]
[360231901,1746641438762,-450.0,0.0001997,2]
[360231903,1746641438773,-450.0,0.0001997,2]
[360231905,1746641438785,-450.0,0.0001997,2]
[360231907,1746641438802,-450.0,0.0001997,2]
[360231909,1746641438813,-450.0,0.0001997,2]
[360231911,1746641438823,-500.0,0.0001997,2]
[360231913,1746641438834,-450.0,0.0001997,2]
[360231916,1746641438847,-450.0,0.0001997,2]
[360231917,1746641438858,-450.0,0.0001997,2]
[360231919,1746641438870,-450.0,0.0001997,2]
[360231921,1746641438881,-500.0,0.0001997,2]
[360231924,1746641438892,-450.0,0.0001997,2]
[360231926,1746641438902,-585.48765425,0.0001997,2]
[360231927,1746641438913,-501.30706186,0.0001997,2]
[360231929,1746641438923,-500.0,0.0001997,2]
[360231931,1746641438934,-300.14839062,0.0001997,2]
[360231933,1746641438945,-500.0,0.0001997,2]
[360231935,1746641438956,-875.25,0.0001997,2]
[360231937,1746641438966,-450.0,0.0001997,2]
[360231939,1746641438977,-450.0,0.0001997,2]
[360231941,1746641438987,-500.0,0.0001997,2]
[360231943,1746641438996,-450.0,0.0001997,2]
[360231945,1746641439007,-355.34,0.0001997,2]
[360231947,1746641439016,-450.0,0.0001997,2]
[360231948,1746641439026,-500.0,0.0001997,2]
[360231950,1746641439036,-450.0,0.0001997,2]
[360231952,1746641439050,-500.0,0.0001997,2]
[360231954,1746641439061,-450.0,0.0001997,2]
[360231956,1746641439073,-450.0,0.0001997,2]
[360231958,1746641439083,-500.0,0.0001997,2]
[360231960,1746641439092,-450.43049376,0.0001997,2]
[360231962,1746641439102,-1016.53,0.0001997,2]
[360231964,1746641439112,-450.0,0.0001997,2]
[360231966,1746641439122,-450.0,0.0001997,2]
[360231968,1746641439131,-450.0,0.0001997,2]
[360231970,1746641439141,-450.0,0.0001997,2]
[360231972,1746641439152,-450.0,0.0001997,2]
[360231974,1746641439161,-510.06631074,0.0001997,2]
[360231976,1746641439172,-450.0,0.0001997,2]
[360231978,1746641439181,-564.19799999,0.0001997,2]
[360231980,1746641439192,-500.0,0.0001997,2]
[360231982,1746641439204,-735.14,0.0001997,2]
[360231984,1746641439213,-450.0,0.0001997,2]
[360231986,1746641439222,-450.0,0.0001997,2]
[360231988,1746641439233,-500.0,0.0001997,2]
[360231990,1746641439243,-278.0778289,0.0001997,2]
[360231993,1746641439266,-221.9221711,0.0001997,2]
[360231995,1746641439275,-450.0,0.0001997,2]
[360231996,1746641439285,-450.0,0.0001997,2]
[360231997,1746641439297,-450.0,0.0001997,2]
[360231998,1746641439306,-450.0,0.0001997,2]
[360231999,1746641439316,-500.0,0.0001997,2]
[360232000,1746641439326,-450.0,0.0001997,2]
[360232001,1746641439335,-450.0,0.0001997,2]
[360232002,1746641439345,-1782.29,0.0001997,2]
[360232003,1746641439355,-450.0,0.0001997,2]
[360232004,1746641439364,-450.0,0.0001997,2]
[360232005,1746641439374,-500.0,0.0001997,2]
[360232006,1746641439383,-635.45,0.0001997,2]
[360232007,1746641439393,-583.3,0.0001997,2]
[360232008,1746641439402,-34.3573892,0.0001997,2]
[360232009,1746641439414,-415.6426108,0.0001997,2]
[360232010,1746641439423,-450.0,0.0001997,2]
[360232011,1746641439433,-701.98795516,0.0001997,2]
[360232012,1746641439444,-1006.00156891,0.0001997,2]
[360232013,1746641439470,-500.0,0.00019969,2]
[360232014,1746641439479,-145.80551384,0.0001997,2]
[360232024,1746641440230,-150.0,0.00019762,2]
[360232025,1746641440240,-150.0,0.00019772,2]
[360232026,1746641440250,-150.0,0.00019852,2]
[360232027,1746641440260,-9109.96636083,0.0001997,2]
[360232028,1746641440271,-2980.28860126,0.0001997,2]
[360232029,1746641440280,-499.73,0.0001997,2]
[360232030,1746641440290,-450.0,0.0001997,2]
[360232031,1746641440300,-450.0,0.0001997,2]
[360232032,1746641440310,-450.0,0.0001997,2]
[360232033,1746641440320,-544.15,0.0001997,2]
[360232034,1746641440330,-450.0,0.0001997,2]
[360232035,1746641440340,-888.33,0.0001997,2]
[360232036,1746641440350,-654.02,0.0001997,2]
[360232037,1746641440360,-450.0,0.0001997,2]
[360232038,1746641440371,-450.0,0.0001997,2]
[360232039,1746641440381,-2477.03,0.0001997,2]
[360232040,1746641440391,-450.0,0.0001997,2]
[360232041,1746641440401,-450.0,0.0001997,2]
[360232042,1746641440410,-450.0,0.0001997,2]
[360232043,1746641440420,-450.0,0.0001997,2]
[360232044,1746641440429,-524.81155393,0.0001997,2]
[360232045,1746641440439,-450.0,0.0001997,2]
[360232046,1746641440449,-450.0,0.0001997,2]
[360232047,1746641440458,-450.0,0.0001997,2]
[360232048,1746641440468,-450.0,0.0001997,2]
[360232049,1746641440478,-387.22528539,0.0001997,2]
[360232050,1746641440586,-189.13883075,0.0001997,2]
[360232051,1746641440610,-1460.30588386,0.0001997,2]
[360232052,1746641440619,-450.0,0.0001997,2]
[360232053,1746641440630,-450.0,0.0001997,2]
[360232054,1746641440640,-450.0,0.0001997,2]
[360232055,1746641440649,-450.0,0.0001997,2]
[360232056,1746641440660,-470.0,0.0001997,2]
[360232057,1746641440670,-493.31,0.0001997,2]
[360232058,1746641440681,-450.0,0.0001997,2]
[360232059,1746641440691,-296.45366607,0.0001997,2]
[360232060,1746641440705,-153.54633393,0.0001997,2]
[360232061,1746641440714,-450.0,0.0001997,2]
[360232063,1746641440724,-9041.85366607,0.0001997,2]
[360232066,1746641440739,-1820.06633393,0.0001997,2]
[360232068,1746641440749,-450.0,0.0001997,2]
[360232070,1746641440760,-450.0,0.0001997,2]
[360232072,1746641440770,-450.0,0.00019971,2]
[360232074,1746641440780,-576.49,0.00019971,2]
[360232075,1746641440792,-450.0,0.00019971,2]
[360232076,1746641440802,-450.0,0.00019971,2]
[360232077,1746641440811,-287.51,0.00019971,2]
[360232078,1746641440821,-450.0,0.00019971,2]
[360232079,1746641440831,-450.0,0.00019971,2]
[360232080,1746641440840,-450.0,0.00019971,2]
[360232081,1746641440850,-1907.92,0.00019971,2]
[360232082,1746641440860,-500.0,0.00019973,2]
[360232083,1746641440869,-500.0,0.00019973,2]
[360232084,1746641440879,-501.04190365,0.00019973,2]
[360232085,1746641440889,-500.0,0.00019973,2]
[360232086,1746641440899,-500.0,0.00019973,2]
[360232087,1746641440909,-500.0,0.00019973,2]
[360232088,1746641440919,-500.0,0.00019973,2]
[360232089,1746641440929,-500.0,0.00019973,2]
[360232090,1746641440939,-150.0,0.00019975,2]
[360232091,1746641440949,-228.2541487,0.00019982,2]
[360232092,1746641440958,-1425.4615281,0.00019982,2]
[360232093,1746641440968,-7793.8560985,0.00019982,2]
[360232094,1746641440978,-1000.0,0.00019983,2]
[360232095,1746641440988,-450.0,0.00019984,2]
[360232096,1746641440997,-576.49,0.00019984,2]
[360232097,1746641441007,-450.0,0.00019984,2]
[360232098,1746641441017,-450.0,0.00019984,2]
[360232099,1746641441027,-450.0,0.00019984,2]
[360232100,1746641441037,-131.73236393,0.00019984,2]